bitfinex-derivatives/quotes_BTCF0:USTF0_20250528
["timestamp","ask_amount","ask_price","bid_price","bid_amount"]
[1748451806950,0.00237178,107690.0,107680.0,0.47237061]
[1748451807147,0.6485929,107700.0,107690.0,0.2784555]
[1748451807345,0.6485929,107700.0,107690.0,0.84023919]
[1748451807648,0.54656962,107710.0,107700.0,0.1856329]
[1748451807952,1.00976962,107710.0,107700.0,0.5270329]
[1748451808151,1.00976962,107710.0,107700.0,0.3414]
[1748451808351,1.00976962,107710.0,107700.0,0.34152]
[1748451808556,1.00976962,107710.0,107700.0,0.5271529]
[1748451808752,1.00976962,107710.0,107700.0,0.34152]
[1748451808943,1.01076962,107710.0,107700.0,0.5271529]
[1748451809144,0.82549952,107710.0,107700.0,0.5271529]
[1748451809346,0.18675522,107710.0,107700.0,0.5271529]
[1748451809655,0.00113952,107710.0,107700.0,0.8879529]
[1748451809852,0.65039522,107710.0,107700.0,0.8879529]
[1748451810348,0.46461952,107710.0,107700.0,1.13093659]
[1748451810545,0.00113952,107710.0,107700.0,1.17127277]
[1748451810744,0.00113952,107710.0,107700.0,1.17227277]
[1748451810948,0.00113952,107710.0,107700.0,0.96188908]
[1748451811149,0.00113952,107710.0,107700.0,1.17227277]
[1748451811340,0.46341952,107710.0,107700.0,1.2268842]
[1748451811749,0.46345952,107710.0,107700.0,1.5687322]
[1748451811949,0.64907522,107710.0,107700.0,1.5707322]
[1748451812280,0.18575522,107710.0,107700.0,1.5717322]
[1748451812553,0.27975412,107740.0,107730.0,0.1855813]
[1748451812852,0.00102154,107740.0,107730.0,0.68633677]
[1748451813045,0.46502154,107740.0,107730.0,0.92955308]
[1748451813241,0.46502154,107740.0,107730.0,0.96991776]
[1748451813442,0.00102154,107740.0,107730.0,0.96991776]
[1748451814143,0.00302154,107740.0,107730.0,0.96991776]
[1748451814544,0.00013952,107750.0,107740.0,0.185564]
[1748451814863,0.13542494,107780.0,107770.0,0.1855124]
[1748451815042,0.11566494,107780.0,107770.0,0.7063124]
[1748451815238,0.10139277,107780.0,107770.0,0.7665124]
[1748451815454,0.56511277,107780.0,107770.0,0.97689609]
[1748451815651,0.46511277,107780.0,107770.0,0.97689609]
[1748451815858,0.67549646,107780.0,107770.0,0.4037124]
[1748451816042,0.86111156,107780.0,107770.0,0.4037124]
[1748451816245,0.46523277,107780.0,107770.0,0.4037124]
[1748451816438,0.46523277,107780.0,107770.0,0.4038324]
[1748451816653,0.46535277,107780.0,107770.0,0.4038324]
[1748451816847,0.00139277,107780.0,107770.0,0.4038324]
[1748451817150,0.46531277,107780.0,107770.0,0.4038324]
[1748451817458,0.46623277,107780.0,107770.0,0.4438324]
[1748451817955,0.46623277,107780.0,107770.0,0.8046324]
[1748451818152,0.46623277,107780.0,107770.0,0.8351324]
[1748451818342,0.46623277,107780.0,107770.0,0.7951324]
[1748451818544,0.65172797,107780.0,107770.0,0.4343324]
[1748451818846,0.65172797,107780.0,107770.0,0.4342124]
[1748451819051,0.1051,107800.0,107790.0,0.1854779]
[1748451819351,0.5695,107800.0,107790.0,0.68586159]
[1748451819545,0.96534439,107800.0,107790.0,0.2805779]
[1748451819745,0.6334,107800.0,107790.0,0.2805779]
[1748451819944,0.84378369,107800.0,107790.0,0.5105779]
[1748451820142,0.77980369,107800.0,107790.0,0.5106979]
[1748451820346,0.56934,107800.0,107790.0,0.8714979]
[1748451820547,0.1061,107800.0,107790.0,0.8714979]
[1748451820741,0.57038,107800.0,107790.0,0.8714979]
[1748451820946,0.57338,107800.0,107790.0,0.8714979]
[1748451821148,0.57314,107800.0,107790.0,1.08188159]
[1748451821558,0.57214,107800.0,107790.0,1.08188159]
[1748451821855,0.56914,107800.0,107790.0,1.08488159]
[1748451822445,0.1051,107800.0,107790.0,0.9344979]
[1748451822763,0.56882,107800.0,107790.0,0.9344979]
[1748451822947,0.1051,107800.0,107790.0,0.9344979]
[1748451823151,0.0212079,107810.0,107800.0,0.1854607]
[1748451823351,0.0212079,107810.0,107800.0,1.10264439]
[1748451823650,0.0212079,107810.0,107800.0,0.9722607]
[1748451824142,0.0212079,107810.0,107800.0,0.9723807]
[1748451824346,0.0212079,107810.0,107800.0,0.9742607]
[1748451824558,0.2066514,107810.0,107800.0,0.9763807]
[1748451824759,0.2066514,107810.0,107800.0,0.8963807]
[1748451824961,0.2066514,107810.0,107800.0,0.8942607]
[1748451825257,1.39545509,107810.0,107800.0,0.14212]
[1748451825463,1.2490714,107810.0,107800.0,0.2244608]
[1748451825646,1.45945509,107810.0,107800.0,0.2245808]
[1748451825846,1.45945509,107810.0,107800.0,0.2960808]
[1748451826257,1.45945509,107810.0,107800.0,0.07912]
[1748451826460,1.45945509,107810.0,107800.0,0.2245808]
[1748451826658,1.45945509,107810.0,107800.0,0.2235808]
[1748451827253,1.45945509,107810.0,107800.0,0.2215808]
[1748451827557,1.45945509,107810.0,107800.0,0.2185808]
[1748451827858,1.45945509,107810.0,107800.0,0.03312]
[1748451828058,1.45945509,107810.0,107800.0,0.00012]
[1748451828557,0.1854613,107800.0,107790.0,0.339803]
[1748451828759,0.1854613,107800.0,107790.0,0.2655785]
[1748451828760,0.6082613,107800.0,107790.0,0.2655785]
[1748451828957,0.81864499,107800.0,107790.0,0.2655785]
[1748451829259,0.81864499,107800.0,107790.0,0.2656985]
[1748451829650,0.81864499,107800.0,107790.0,0.08022]
[1748451829957,0.81864499,107800.0,107790.0,0.00112]
[1748451829958,1.02902868,107800.0,107790.0,0.00112]
[1748451830257,0.81864499,107800.0,107790.0,0.00112]
[1748451830559,0.81864499,107800.0,107790.0,0.001]
[1748451830948,0.6082613,107800.0,107790.0,0.001]
[1748451831151,0.81864499,107800.0,107790.0,0.00112]
[1748451831758,0.83290849,107800.0,107790.0,0.00112]
[1748451834267,0.6082613,107800.0,107790.0,0.00112]
[1748451834867,1.40164499,107800.0,107790.0,0.2172985]
[1748451835159,0.57740499,107800.0,107790.0,0.2272985]
[1748451835348,0.85514369,107800.0,107790.0,0.2484985]
[1748451835553,0.3670213,107800.0,107790.0,0.5284985]
[1748451835754,0.8302213,107800.0,107790.0,0.5284985]
[1748451836156,0.3670213,107800.0,107790.0,0.5284985]
[1748451836355,0.8300213,107800.0,107790.0,0.5284985]
[1748451836662,0.8297813,107800.0,107790.0,0.5294985]
[1748451836863,0.8297813,107800.0,107790.0,0.5304985]
[1748451837059,0.3670213,107800.0,107790.0,0.5304985]
[1748451837253,0.8296213,107800.0,107790.0,0.5332785]
[1748451837458,0.8296213,107800.0,107790.0,0.5312785]
[1748451837658,1.1904213,107800.0,107790.0,0.5312785]
[1748451838053,1.40080499,107800.0,107790.0,0.5312785]
[1748451838263,1.40080499,107800.0,107790.0,0.2793785]
[1748451838971,1.40080499,107800.0,107790.0,0.3116785]
[1748451838972,1.1904213,107800.0,107790.0,0.3116785]
[1748451839270,1.40080499,107800.0,107790.0,0.3116785]
[1748451839769,1.40080499,107800.0,107790.0,0.3446785]
[1748451839961,1.1904213,107800.0,107790.0,0.3446785]
[1748451840166,1.40080499,107800.0,107790.0,0.3446785]
[1748451840463,0.4228,107800.0,107790.0,0.3446785]
[1748451840670,0.8308213,107800.0,107790.0,0.6246785]
[1748451840859,0.8308213,107800.0,107790.0,0.5446785]
[1748451841259,0.2474613,107800.0,107790.0,0.5446785]
[1748451841676,0.8310213,107800.0,107790.0,0.5446785]
[1748451841861,0.2474613,107800.0,107790.0,0.5446785]
[1748451842068,0.8309013,107800.0,107790.0,0.5446785]
[1748451842365,0.8307013,107800.0,107790.0,0.5446785]
[1748451843272,0.8307013,107800.0,107790.0,0.5466785]
[1748451843571,0.8307013,107800.0,107790.0,0.4813785]
[1748451843866,0.1855301,107760.0,107730.0,0.00176398]
[1748451844073,0.5463646,107740.0,107730.0,0.0813922]
[1748451844372,0.5463646,107740.0,107730.0,0.2813922]
[1748451844584,0.65762433,107740.0,107730.0,0.2813922]
[1748451845069,0.08105973,107740.0,107730.0,0.91735769]
[1748451845272,0.03115973,107740.0,107730.0,1.65429769]
[1748451845475,0.0005113,107750.0,107740.0,0.1855646]
[1748451845764,0.0005113,107750.0,107740.0,1.42854829]
[1748451845964,0.0005113,107750.0,107740.0,1.71136028]
[1748451846566,0.0005113,107750.0,107740.0,1.49136028]
[1748451846769,0.0005113,107750.0,107740.0,1.49236028]
[1748451846962,0.0005113,107750.0,107740.0,1.49436028]
[1748451847362,0.0005113,107750.0,107740.0,1.13356028]
[1748451847560,0.0005113,107750.0,107740.0,1.13256028]
[1748451848073,0.0005113,107750.0,107740.0,1.49336028]
[1748451848272,0.0005113,107750.0,107740.0,1.24336028]
[1748451848465,0.0005113,107750.0,107740.0,1.27386028]
[1748451848967,0.0005113,107750.0,107740.0,0.94546028]
[1748451848968,0.1860588,107750.0,107740.0,0.94546028]
[1748451849267,0.75724249,107750.0,107740.0,0.4567]
[1748451849474,0.82054249,107750.0,107740.0,0.1349]
[1748451849677,0.94010249,107750.0,107740.0,0.07212]
[1748451849861,0.94010249,107750.0,107740.0,0.072]
[1748451849862,0.99790976,107750.0,107740.0,0.072]
[1748451850061,0.99790976,107750.0,107740.0,0.00112]
[1748451850062,1.08462067,107750.0,107740.0,0.00112]
[1748451850659,1.08562067,107750.0,107740.0,0.00012]
[1748451850868,0.96606067,107750.0,107740.0,0.00012]
[1748451851073,0.1855647,107740.0,107730.0,0.1897541]
[1748451851278,0.6401647,107740.0,107730.0,0.1041722]
[1748451851665,0.6401647,107740.0,107730.0,0.1359722]
[1748451851979,0.85054839,107740.0,107730.0,0.1041722]
[1748451852272,0.85054839,107740.0,107730.0,0.10278]
[1748451852669,0.90835566,107740.0,107730.0,0.2884819]
[1748451852873,1.43398839,107740.0,107730.0,0.2884819]
[1748451853073,1.43498839,107740.0,107730.0,0.2884819]
[1748451853276,1.43586839,107740.0,107730.0,0.2884819]
[1748451853773,1.0398,107740.0,107730.0,0.2884819]
[1748451853973,1.43574839,107740.0,107730.0,0.3204819]
[1748451854177,0.66698369,107740.0,107730.0,0.5217819]
[1748451854373,0.4261,107740.0,107730.0,0.5217819]
[1748451854568,0.3628,107740.0,107730.0,0.84498559]
[1748451854772,0.0005113,107750.0,107740.0,0.1855647]
[1748451854963,0.0005113,107750.0,107740.0,1.40674839]
[1748451855168,0.57169499,107750.0,107740.0,0.6875647]
[1748451855367,1.03585499,107750.0,107740.0,0.4875647]
[1748451855676,0.4645913,107750.0,107740.0,1.00806839]
[1748451855879,0.4645913,107750.0,107740.0,1.36986839]
[1748451856069,0.4645913,107750.0,107740.0,0.7986847]
[1748451856267,0.0005113,107750.0,107740.0,1.46268038]
[1748451856973,0.0005113,107750.0,107740.0,1.25229669]
[1748451857171,0.0005113,107750.0,107740.0,0.89249669]
[1748451857574,0.0005113,107750.0,107740.0,0.69249669]
[1748451858182,0.0005113,107750.0,107740.0,0.72319669]
[1748451858384,0.0005113,107750.0,107740.0,0.72307669]
[1748451858570,0.0005113,107750.0,107740.0,1.08399669]
[1748451860275,0.82044249,107750.0,107740.0,0.6303847]
[1748451860477,0.82044249,107750.0,107740.0,0.6302647]
[1748451860677,0.6100588,107750.0,107740.0,0.6303847]
[1748451861087,0.82044249,107750.0,107740.0,0.6302647]
[1748451861277,0.82044249,107750.0,107740.0,0.4503847]
[1748451861585,1.0733788,107750.0,107740.0,0.4502647]
[1748451861778,1.0733788,107750.0,107740.0,0.4503847]
[1748451862278,1.0733788,107750.0,107740.0,0.3096847]
[1748451862279,1.28376249,107750.0,107740.0,0.3096847]
[1748451862476,1.31476249,107750.0,107740.0,0.3085647]
[1748451862678,1.43436249,107750.0,107740.0,0.091]
[1748451862879,1.43436249,107750.0,107740.0,0.2765647]
[1748451863071,1.43436249,107750.0,107740.0,0.092]
[1748451863281,1.49216976,107750.0,107740.0,0.09212]
[1748451863477,1.49216976,107750.0,107740.0,0.092]
[1748451863677,1.28178607,107750.0,107740.0,0.09012]
[1748451863876,1.43436249,107750.0,107740.0,0.09]
[1748451864179,1.43436249,107750.0,107740.0,0.09012]
[1748451865781,1.43536249,107750.0,107740.0,0.09012]
[1748451866083,0.1855817,107730.0,107720.0,0.00013952]
[1748451866389,1.4890617,107730.0,107720.0,0.02013952]
[1748451866582,1.79394539,107730.0,107720.0,0.20585842]
[1748451866780,1.79394539,107730.0,107720.0,0.02025952]
[1748451867285,1.79394539,107730.0,107720.0,0.02125952]
[1748451868078,1.1209217,107730.0,107720.0,0.40685842]
[1748451868389,1.5845617,107730.0,107720.0,0.47065842]
[1748451868988,1.4030217,107730.0,107720.0,0.68104211]
[1748451869190,1.4332217,107730.0,107720.0,0.68104211]
[1748451869386,1.24764,107730.0,107720.0,0.68104211]
[1748451869685,1.4332217,107730.0,107720.0,0.47065842]
[1748451869988,1.0724217,107730.0,107720.0,0.47065842]
[1748451870786,0.85628,107730.0,107720.0,0.51065842]
[1748451870992,1.0418617,107730.0,107720.0,0.51065842]
[1748451871291,0.718758,107740.0,107730.0,0.1855817]
[1748451871585,1.182758,107740.0,107730.0,0.4985817]
[1748451871779,1.215858,107740.0,107730.0,0.4985817]
[1748451872175,0.1855817,107730.0,107720.0,0.18785182]
[1748451872372,0.4271,107730.0,107720.0,0.41873182]
[1748451872576,0.49714,107730.0,107720.0,0.48885182]
[1748451872776,0.2186817,107730.0,107720.0,0.48885182]
[1748451872989,1.0434017,107730.0,107720.0,0.48885182]
[1748451873191,1.0766017,107730.0,107720.0,0.48885182]
[1748451873689,1.0766017,107730.0,107720.0,0.48985182]
[1748451874390,0.7158017,107730.0,107720.0,0.49085182]
[1748451874589,0.53022,107730.0,107720.0,0.49085182]
[1748451874882,0.6126817,107730.0,107720.0,0.49085182]
[1748451875072,0.49682,107730.0,107720.0,0.63123551]
[1748451875276,0.5770603,107750.0,107740.0,0.1855645]
[1748451875473,1.1033603,107750.0,107740.0,0.68687819]
[1748451875673,1.0732003,107750.0,107740.0,0.74757819]
[1748451875881,0.2487603,107750.0,107740.0,0.74757819]
[1748451876084,0.7122803,107750.0,107740.0,0.74757819]
[1748451876286,1.0730803,107750.0,107740.0,0.74757819]
[1748451876486,1.0730803,107750.0,107740.0,0.74850819]
[1748451876687,1.0740803,107750.0,107740.0,0.74850819]
[1748451876888,1.0737603,107750.0,107740.0,0.74850819]
[1748451877285,1.0737603,107750.0,107740.0,0.5381245]
[1748451878388,1.0737603,107750.0,107740.0,0.32206]
[1748451878693,1.28314399,107750.0,107740.0,0.29298]
[1748451878884,1.28314399,107750.0,107740.0,0.29286]
[1748451879081,1.28314399,107750.0,107740.0,0.29298]
[1748451879483,1.0727603,107750.0,107740.0,0.29298]
[1748451879687,1.28314399,107750.0,107740.0,0.10298]
[1748451879896,1.28314399,107750.0,107740.0,0.10286]
[1748451880085,1.0727603,107750.0,107740.0,0.10298]
[1748451880280,1.0727603,107750.0,107740.0,0.2885444]
[1748451880492,1.0727603,107750.0,107740.0,0.13288]
[1748451880694,1.0727603,107750.0,107740.0,0.3184444]
[1748451880894,1.0727603,107750.0,107740.0,0.5084444]
[1748451882087,1.0737603,107750.0,107740.0,0.5084445]
[1748451883594,1.0727603,107750.0,107740.0,0.5084445]
[1748451883990,1.0727603,107750.0,107740.0,0.32288]
[1748451884290,1.42766217,107750.0,107740.0,0.00198]
[1748451884494,1.42766217,107750.0,107740.0,0.00186]
[1748451884695,1.42766217,107750.0,107740.0,0.00198]
[1748451884898,1.42766217,107750.0,107740.0,0.00186]
[1748451885083,1.42866217,107750.0,107740.0,0.00198]
[1748451885697,1.42866217,107750.0,107740.0,0.00476]
[1748451885885,1.3708549,107750.0,107740.0,0.00476]
[1748451886294,1.3708549,107750.0,107740.0,0.00464]
[1748451886595,0.1855817,107730.0,107720.0,0.00013952]
[1748451886790,1.69764539,107730.0,107720.0,0.07013952]
[1748451886996,1.73044539,107730.0,107720.0,0.07013952]
[1748451887308,1.0592217,107730.0,107720.0,0.25585842]
[1748451887602,0.9399817,107730.0,107720.0,0.25585842]
[1748451887897,1.4004617,107730.0,107720.0,0.52285842]
[1748451888397,1.4004617,107730.0,107720.0,0.27225952]
[1748451888797,1.4004617,107730.0,107720.0,0.30555952]
[1748451889484,1.61084539,107730.0,107720.0,0.05225952]
[1748451889683,1.64304539,107730.0,107720.0,0.05225952]
[1748451889885,1.70088363,107730.0,107720.0,0.05213952]
[1748451890096,1.70088363,107730.0,107720.0,0.05225952]
[1748451890392,1.78764099,107730.0,107720.0,0.05213952]
[1748451890595,1.78764099,107730.0,107720.0,0.05225952]
[1748451890797,1.90904099,107730.0,107720.0,0.05225952]
[1748451893085,1.85120275,107730.0,107720.0,0.05225952]
[1748451893300,1.85120275,107730.0,107720.0,0.01225952]
[1748451893501,1.26932275,107730.0,107720.0,0.01225952]
[1748451893800,1.85080275,107730.0,107720.0,0.01225952]
[1748451897095,1.90861974,107730.0,107720.0,0.01225952]
[1748451898007,1.90785974,107730.0,107720.0,0.01225952]
[1748451899902,1.90785974,107730.0,107720.0,0.00213952]
[1748451900104,1.90785974,107730.0,107720.0,0.00225952]
[1748451900304,1.85004275,107730.0,107720.0,0.00213952]
[1748451900801,0.1855988,107720.0,107710.0,0.00278]
[1748451901007,1.20491964,107720.0,107710.0,0.00278]
[1748451901307,0.1856506,107690.0,107680.0,0.01283019]
[1748451901507,0.1856506,107690.0,107680.0,0.47899809]
[1748451901508,1.33715429,107690.0,107680.0,0.47899809]
[1748451901710,1.0080106,107690.0,107680.0,0.47899809]
[1748451901909,1.0689106,107690.0,107680.0,0.51159809]
[1748451902206,1.0689106,107690.0,107680.0,0.51171809]
[1748451902899,1.0689106,107690.0,107680.0,0.51871809]
[1748451903500,1.0683906,107690.0,107680.0,0.51871809]
[1748451903807,1.29279661,107690.0,107680.0,0.33305019]
[1748451904003,1.29279661,107690.0,107680.0,0.51871249]
[1748451904206,1.29279661,107690.0,107680.0,0.33305019]
[1748451904413,1.29279661,107690.0,107680.0,0.33793019]
[1748451905002,1.29279661,107690.0,107680.0,0.30533019]
[1748451905192,1.29279661,107690.0,107680.0,0.30545019]
[1748451905595,1.29279661,107690.0,107680.0,0.27495019]
[1748451905806,1.29279661,107690.0,107680.0,0.27483019]
[1748451906608,1.29279661,107690.0,107680.0,0.27495019]
[1748451907406,1.29279661,107690.0,107680.0,0.09495019]
[1748451907804,1.59009661,107690.0,107680.0,0.08212]
[1748451908110,1.69118945,107690.0,107680.0,0.08212]
[1748451908406,1.69118945,107690.0,107680.0,0.082]
[1748451908608,1.69118945,107690.0,107680.0,0.08212]
[1748451908813,1.73459213,107690.0,107680.0,0.01212]
[1748451909308,1.73459213,107690.0,107680.0,0.00712]
[1748451909612,1.73559213,107690.0,107680.0,0.00712]
[1748451909818,1.73559213,107690.0,107680.0,0.007]
[1748451910107,0.1856626,107680.0,107670.0,0.00291952]
[1748451910309,1.01410211,107680.0,107670.0,0.17291952]
[1748451910800,1.01410211,107680.0,107670.0,0.17303952]
[1748451912105,1.07190032,107680.0,107670.0,0.17303952]
[1748451912414,1.28228401,107680.0,107670.0,0.17303952]
[1748451912797,1.28228401,107680.0,107670.0,0.17291952]
[1748451912996,2.3789455,107680.0,107670.0,0.00291952]
[1748451913201,2.3789455,107680.0,107670.0,0.00303952]
[1748451913396,2.3789455,107680.0,107670.0,0.00291952]
[1748451913598,2.3789455,107680.0,107670.0,0.00303952]
[1748451913811,2.3799455,107680.0,107670.0,0.00303952]
[1748451914005,2.3789455,107680.0,107670.0,0.00303952]
[1748451914206,2.3799455,107680.0,107670.0,0.00303952]
[1748451914611,2.3829455,107680.0,107670.0,0.00303952]
[1748451916113,2.38281342,107680.0,107670.0,0.00303952]
[1748451917304,2.38281494,107680.0,107670.0,0.00303952]
[1748451917519,2.32514729,107680.0,107670.0,0.00303952]
[1748451919316,2.78398729,107680.0,107670.0,0.00303952]
[1748451920018,2.74847191,107680.0,107670.0,0.00303952]
[1748451920607,2.74847191,107680.0,107670.0,2e-08]
[1748451920807,2.28963191,107680.0,107670.0,2e-08]
[1748451921006,2.74807191,107680.0,107670.0,2e-08]
[1748451921313,0.1856817,107670.0,107660.0,0.03146002]
[1748451921502,1.0960573,107670.0,107660.0,0.10146002]
[1748451922810,1.0970573,107670.0,107660.0,0.10146002]
[1748451923213,1.4669453,107670.0,107660.0,0.10146002]
[1748451923417,1.8521973,107670.0,107660.0,0.10146002]
[1748451924409,1.4689453,107670.0,107660.0,0.10146002]
[1748451924610,1.8541973,107670.0,107660.0,0.10146002]
[1748451925708,1.89764164,107670.0,107660.0,0.0388251]
[1748451925905,0.1856989,107660.0,107650.0,6e-08]
[1748451926108,0.1857334,107640.0,107630.0,0.03]
[1748451926315,1.8693219,107640.0,107630.0,0.15961175]
[1748451926516,1.9333219,107640.0,107630.0,0.15973175]
[1748451926815,2.00721258,107640.0,107630.0,0.15961175]
[1748451927017,2.00721258,107640.0,107630.0,0.12863175]
[1748451927717,1.81458658,107640.0,107630.0,0.02863175]
[1748451927924,1.81458658,107640.0,107630.0,0.29863175]
[1748451928413,1.81458658,107640.0,107630.0,0.30063175]
[1748451928815,1.81458658,107640.0,107630.0,0.30263175]
[1748451929226,1.87229255,107640.0,107630.0,0.30263175]
[1748451929419,1.87229255,107640.0,107630.0,0.33361175]
[1748451929620,1.87229255,107640.0,107630.0,0.33373175]
[1748451930518,1.81458658,107640.0,107630.0,0.33373175]
[1748451930719,1.87229255,107640.0,107630.0,0.33373175]
[1748451931416,1.67966655,107640.0,107630.0,0.33373175]
[1748451931626,1.87229255,107640.0,107630.0,0.33373175]
[1748451933216,1.67966655,107640.0,107630.0,0.33373175]
[1748451933421,1.87229255,107640.0,107630.0,0.33373175]
[1748451934318,1.82736187,107640.0,107630.0,0.33373175]
[1748451935126,1.82836187,107640.0,107630.0,0.33173175]
[1748451935424,1.63773587,107640.0,107630.0,0.32973175]
[1748451935722,1.83036187,107640.0,107630.0,0.32973175]
[1748451936717,1.79976187,107640.0,107630.0,0.32973175]
[1748451938730,1.88645918,107640.0,107630.0,0.32973175]
[1748451941521,1.69383318,107640.0,107630.0,0.32973175]
[1748451941721,1.88645918,107640.0,107630.0,0.32973175]
[1748451942928,1.88645918,107640.0,107630.0,0.13973175]
[1748451943134,2.07945696,107640.0,107630.0,0.13973175]
[1748451943332,2.02175099,107640.0,107630.0,0.13973175]
[1748451943633,2.02175099,107640.0,107630.0,0.08012]
[1748451943824,2.02175099,107640.0,107630.0,0.08]
[1748451944333,1.63649899,107640.0,107630.0,0.08]
[1748451944522,2.02175099,107640.0,107630.0,0.08]
[1748451944722,2.02175099,107640.0,107630.0,0.08012]
[1748451948834,0.1857508,107630.0,107620.0,0.00291952]
[1748451949033,0.92325095,107630.0,107620.0,0.14291952]
[1748451949429,0.7321132,107630.0,107620.0,0.14291952]
[1748451949622,0.93875569,107630.0,107620.0,0.14303952]
[1748451949828,0.93875569,107630.0,107620.0,0.14291952]
[1748451950031,0.93875569,107630.0,107620.0,0.14303952]
[1748451950832,0.93975569,107630.0,107620.0,0.14303952]
[1748451952738,0.74712969,107630.0,107620.0,0.14303952]
[1748451952935,0.93975569,107630.0,107620.0,0.14303952]
[1748451955333,0.96840297,107630.0,107620.0,0.14303952]
[1748451956632,0.77577697,107630.0,107620.0,0.14303952]
[1748451956939,0.96840297,107630.0,107620.0,0.14303952]
[1748451957829,1.11317554,107630.0,107620.0,0.32880762]
[1748451958030,1.47548014,107630.0,107620.0,0.39120762]
[1748451958430,1.53346361,107630.0,107620.0,0.39120762]
[1748451958644,1.53346361,107630.0,107620.0,0.20543952]
[1748451958941,1.53346361,107630.0,107620.0,0.39120752]
[1748451959344,1.53495186,107630.0,107620.0,0.39120752]
[1748451959538,1.53471186,107630.0,107620.0,0.39120752]
[1748451959839,1.50215186,107630.0,107620.0,0.39120752]
[1748451960340,1.50115186,107630.0,107620.0,0.39120752]
[1748451960839,0.52275506,107630.0,107620.0,0.76383352]
[1748451961040,0.10397159,107630.0,107620.0,1.70175555]
[1748451961337,0.01699299,107630.0,107620.0,1.78291095]
[1748451961547,0.47011299,107630.0,107620.0,1.72870492]
[1748451962044,0.65586389,107630.0,107620.0,1.72870492]
[1748451962235,0.46999299,107630.0,107620.0,1.72870492]
[1748451962432,0.01699299,107630.0,107620.0,1.72870492]
[1748451962630,0.04525496,107640.0,107630.0,0.1857509]
[1748451962631,0.00176617,107640.0,107630.0,0.1857509]
[1748451962939,0.00176617,107640.0,107630.0,1.77897888]
[1748451963136,0.00176617,107640.0,107630.0,1.90308688]
[1748451963334,0.00176617,107640.0,107630.0,1.87568513]
[1748451963533,0.00037178,107640.0,107630.0,1.87568513]
[1748451964139,0.00013952,107650.0,107640.0,0.1857336]
[1748451964340,0.00013952,107650.0,107640.0,1.84293897]
[1748451964543,0.00013952,107650.0,107640.0,2.03827611]
[1748451965237,0.00013952,107650.0,107640.0,2.03927611]
[1748451965433,1.0924324,107680.0,107650.0,0.0464261]
[1748451965640,1.0924324,107680.0,107670.0,0.1856819]
[1748451965641,1.23699207,107680.0,107670.0,0.1856819]
[1748451965831,1.26769207,107680.0,107670.0,0.4556819]
[1748451966037,0.81457207,107680.0,107670.0,0.5193819]
[1748451966238,0.81457207,107680.0,107670.0,0.52087015]
[1748451966239,1.26849207,107680.0,107670.0,0.52087015]
[1748451966736,1.27149207,107680.0,107670.0,0.52087015]
[1748451967046,1.27349207,107680.0,107670.0,0.52087015]
[1748451967346,1.17349207,107680.0,107670.0,0.52087015]
[1748451967538,1.17325207,107680.0,107670.0,0.52087015]
[1748451967739,1.12683237,107680.0,107670.0,0.52087015]
[1748451968136,0.3142124,107680.0,107670.0,0.52087015]
[1748451968333,0.7675324,107680.0,107670.0,0.52087015]
[1748451968849,1.0819142,107680.0,107670.0,0.52087015]
[1748451969147,1.2745402,107680.0,107670.0,0.52087015]
[1748451969346,1.0819142,107680.0,107670.0,0.52087015]
[1748451969536,1.2745402,107680.0,107670.0,0.52087015]
[1748451969739,1.2743802,107680.0,107670.0,0.52087015]
[1748451969938,0.6285942,107680.0,107670.0,0.52087015]
[1748451970138,1.2743402,107680.0,107670.0,0.52087015]
[1748451971438,1.3879002,107680.0,107670.0,0.01148825]
[1748451971639,0.1856819,107670.0,107660.0,0.00199955]
[1748451971844,0.9970339,107670.0,107660.0,0.02199955]
[1748451972145,0.65520823,107670.0,107660.0,0.21047865]
[1748451972350,0.84783423,107670.0,107660.0,0.02477955]
[1748451972649,1.60702023,107670.0,107660.0,0.02477955]
[1748451972847,1.60802023,107670.0,107660.0,0.02477955]
[1748451973051,1.60902023,107670.0,107660.0,0.02489955]
[1748451973346,1.60902023,107670.0,107660.0,0.02477955]
[1748451973552,1.60902023,107670.0,107660.0,0.02489955]
[1748451973750,1.61002023,107670.0,107660.0,0.02489955]
[1748451973946,1.43743445,107670.0,107660.0,0.02489955]
[1748451981256,1.49541792,107670.0,107660.0,0.02489955]
[1748451982356,1.49541792,107670.0,107660.0,0.19489955]
[1748451982754,1.49401792,107670.0,107660.0,0.19489955]
[1748451984357,0.185699,107660.0,107650.0,0.00139324]
[1748451984661,1.24863021,107660.0,107650.0,0.00139324]
[1748451984856,1.29232729,107660.0,107650.0,0.00151324]
[1748451985950,1.29332729,107660.0,107650.0,0.00012]
[1748451986361,1.29432729,107660.0,107650.0,0.00012]
[1748451986862,1.23634382,107660.0,107650.0,0.00012]
[1748451987059,1.23734382,107660.0,107650.0,0.01012]
[1748451987263,0.1857162,107650.0,107640.0,0.00291952]
[1748451987464,1.49223639,107650.0,107640.0,0.07105949]
[1748451988369,1.23824773,107650.0,107640.0,0.07105949]
[1748451988563,1.44891395,107650.0,107640.0,0.07105949]
[1748451988749,1.53689255,107650.0,107640.0,0.07105949]
[1748451988954,1.53689255,107650.0,107640.0,0.07117949]
[1748451989863,1.53849255,107650.0,107640.0,0.00117949]
[1748451990157,0.76330633,107650.0,107640.0,0.25117949]
[1748451990459,0.40044828,107650.0,107640.0,0.43691299]
[1748451990652,1.03720448,107650.0,107640.0,0.53111299]
[1748451991052,1.2478707,107650.0,107640.0,0.53111299]
[1748451991264,1.2468707,107650.0,107640.0,0.53111299]
[1748451991656,1.2458707,107650.0,107640.0,0.53111299]
[1748451991852,0.6091145,107650.0,107640.0,0.69111299]
[1748451992057,1.03488448,107650.0,107640.0,0.84311299]
[1748451992360,1.03388448,107650.0,107640.0,0.84311299]
[1748451992671,1.03388448,107650.0,107640.0,0.84511299]
[1748451994469,1.03364448,107650.0,107640.0,0.84511299]
[1748451994965,0.54986448,107650.0,107640.0,0.84511299]
[1748451995165,1.00018448,107650.0,107640.0,0.84511299]
[1748451996065,0.99994448,107650.0,107640.0,0.84511299]
[1748451997067,1.19251971,107650.0,107640.0,0.84511299]
[1748451997369,0.83171971,107650.0,107640.0,0.89970453]
[1748451997567,0.45342828,107650.0,107640.0,0.89970453]
[1748451998166,0.45278828,107650.0,107640.0,0.89970453]
[1748451998369,0.45278828,107650.0,107640.0,0.89864504]
[1748451998566,0.45274828,107650.0,107640.0,1.18411627]
[1748451999365,0.45274828,107650.0,107640.0,1.26600381]
[1748451999561,0.00334828,107650.0,107640.0,1.26600381]
[1748452001276,0.00334828,107650.0,107640.0,1.26608574]
[1748452001573,0.00334828,107650.0,107640.0,1.07351051]
[1748452003076,0.41423971,107650.0,107640.0,0.68061451]
[1748452003265,0.22852351,107650.0,107640.0,0.59872697]
[1748452003463,0.77503971,107650.0,107640.0,0.59872697]
[1748452003667,0.77503971,107650.0,107640.0,0.68061451]
[1748452004371,0.58932351,107650.0,107640.0,0.68061451]
[1748452005174,0.39674828,107650.0,107640.0,0.68061451]
[1748452005371,0.39674828,107650.0,107640.0,0.98061451]